bitfinex/quotes_BTCUSD_20210402
["timestamp","ask_amount","ask_price","bid_price","bid_amount"]
[1617351977554,0.66,59480.0,59478.0,0.01622024]
[1617351978353,1.165,59479.0,59478.0,0.01622024]
[1617351978555,0.6,59479.0,59478.0,0.01622024]
[1617351978760,0.983478,59479.0,59478.0,0.01622024]
[1617351978957,0.6,59479.0,59478.0,0.01622024]
[1617351979585,2.053478,59479.0,59478.0,0.01622024]
[1617351979794,2.695478,59479.0,59478.0,0.01622024]
[1617351979995,3.93243019,59479.0,59478.0,0.01622024]
[1617351980194,4.18475119,59479.0,59478.0,0.01622024]
[1617351980390,4.48475119,59479.0,59478.0,0.01622024]
[1617351980585,5.87475119,59479.0,59478.0,0.01622024]
[1617351981383,5.92475119,59479.0,59478.0,0.01622024]
[1617351981591,5.97475119,59479.0,59469.0,0.01103236]
[1617351981823,0.383478,59475.0,59470.0,0.01622024]
[1617351982017,3.403478,59471.0,59470.0,0.01622024]
[1617351982215,3.742926,59471.0,59470.0,0.01622024]
[1617351982417,3.842926,59471.0,59470.0,0.01622024]
[1617351982813,3.54330938,59471.0,59470.0,0.01622024]
[1617351983214,4.23330938,59471.0,59470.0,0.01622024]
[1617351984866,4.23330938,59471.0,59462.0,0.01622024]
[1617351985062,0.382924,59467.0,59462.0,0.01822024]
[1617351985262,2.772924,59463.0,59462.0,0.01822024]
[1617351986664,3.25061904,59463.0,59462.0,0.01822024]
[1617351988486,0.86061904,59463.0,59462.0,0.01822024]
[1617351988687,0.38561904,59463.0,59462.0,0.01822024]
[1617351989489,1.92561904,59463.0,59462.0,0.01822024]
[1617351990290,0.38561904,59463.0,59462.0,0.01822024]
[1617351991290,1.88561904,59463.0,59462.0,0.01822024]
[1617351991491,2.18061904,59463.0,59462.0,0.01822024]
[1617351992928,0.68061904,59463.0,59462.0,0.01822024]
[1617351993331,1.04599677,59463.0,59462.0,0.01822024]
[1617351994733,4.29776896,59463.0,59462.0,0.01722024]
[1617351994964,4.02677219,59462.0,59460.0,0.0004]
[1617351995161,1.54997847,59461.0,59460.0,0.0004]
[1617351995360,3.27456847,59461.0,59460.0,0.0004]
[1617351995751,3.27856847,59461.0,59460.0,0.0022]
[1617351996360,0.126232,59458.0,59453.0,0.00062]
[1617351996555,0.382924,59454.0,59453.0,0.00062]
[1617351996751,2.00775351,59454.0,59453.0,0.00062]
[1617351996950,1.70775351,59454.0,59453.0,0.00062]
[1617351997154,0.581924,59454.0,59453.0,0.00062]
[1617351997358,0.692924,59454.0,59453.0,0.00062]
[1617351997595,0.592924,59454.0,59453.0,0.00062]
[1617351997782,0.382924,59454.0,59453.0,0.00062]
[1617351999186,0.65698132,59454.0,59453.0,0.00062]
[1617351999382,0.382924,59454.0,59453.0,0.00062]
[1617351999796,0.422924,59454.0,59453.0,0.00062]
[1617351999997,0.382924,59454.0,59453.0,0.00062]
[1617352001599,0.382924,59454.0,59448.0,0.26461939]
[1617352003425,3.18,59449.0,59448.0,0.26461939]
[1617352003630,3.662924,59449.0,59448.0,0.26461939]
[1617352003826,3.502924,59449.0,59448.0,0.26461939]
[1617352005224,1.632924,59449.0,59448.0,0.26461939]
[1617352005453,2.027924,59449.0,59448.0,0.26461939]
[1617352006255,0.877924,59449.0,59448.0,0.26461939]
[1617352006457,0.482924,59449.0,59448.0,0.26461939]
[1617352006654,0.382924,59449.0,59448.0,0.26461939]
[1617352008280,0.00036958,59453.0,59448.0,0.26461939]
[1617352008489,0.00036958,59453.0,59448.0,0.24961939]
[1617352011109,0.00036958,59453.0,59448.0,0.66899939]
[1617352011308,0.00036958,59453.0,59449.0,0.66075008]
[1617352011508,0.00036958,59453.0,59450.0,0.24822781]
[1617352011708,0.00036958,59453.0,59452.0,2.71]
[1617352011901,0.00036958,59453.0,59452.0,3.24613781]
[1617352012102,0.00036958,59453.0,59452.0,3.09791]
[1617352012303,0.00036958,59453.0,59452.0,3.24613781]
[1617352012703,0.00036958,59453.0,59452.0,3.65613781]
[1617352012906,0.00036958,59453.0,59452.0,3.65575481]
[1617352013926,0.00036958,59453.0,59452.0,0.897527]
[1617352014328,0.00036958,59453.0,59452.0,0.099617]
[1617352014737,0.00036958,59453.0,59452.0,0.1]
[1617352015134,0.00036958,59453.0,59452.0,0.48791]
[1617352017746,0.00036958,59453.0,59452.0,0.1]
[1617352018146,0.00036958,59453.0,59451.0,0.352362]
[1617352018349,0.00036958,59453.0,59451.0,0.252362]
[1617352018578,0.00036958,59453.0,59452.0,0.62791]
[1617352018982,0.00036958,59453.0,59452.0,1.82791]
[1617352019373,0.00036958,59453.0,59452.0,0.62791]
[1617352020174,0.12502592,59453.0,59452.0,0.62791]
[1617352022204,0.12502592,59453.0,59452.0,0.48791]
[1617352024236,0.00331833,59453.0,59452.0,0.48791]
[1617352024430,0.00331833,59453.0,59452.0,0.63791]
[1617352026029,0.00036958,59453.0,59452.0,0.63791]
[1617352026228,0.00331849,59453.0,59452.0,0.63791]
[1617352026647,0.00036958,59453.0,59452.0,0.63791]
[1617352027451,0.00331876,59453.0,59452.0,0.63791]
[1617352027650,0.00331876,59453.0,59452.0,0.25]
[1617352028053,0.00331876,59453.0,59452.0,0.73316174]
[1617352028254,0.00331876,59453.0,59452.0,0.63791]
[1617352028853,0.00036958,59453.0,59452.0,0.63791]
[1617352029077,0.00331899,59453.0,59452.0,0.63791]
[1617352030075,0.00036958,59453.0,59452.0,0.63791]
[1617352030276,0.00036958,59453.0,59452.0,0.48791]
[1617352032314,0.00036958,59453.0,59452.0,0.76075008]
[1617352032725,1.861e-05,59454.0,59453.0,3.26822781]
[1617352032914,1.861e-05,59454.0,59453.0,4.25080578]
[1617352033115,1.861e-05,59454.0,59453.0,4.80113781]
[1617352033313,1.861e-05,59454.0,59453.0,4.85113781]
[1617352033512,1.861e-05,59454.0,59453.0,5.19580578]
[1617352034342,1.861e-05,59454.0,59453.0,5.69580578]
[1617352036138,1.861e-05,59454.0,59453.0,5.84661172]
[1617352041589,1.861e-05,59454.0,59453.0,5.84684539]
[1617352042616,0.8581343,59454.0,59453.0,5.84684539]
[1617352043012,0.5218093,59454.0,59453.0,5.84684539]
[1617352043209,0.5218093,59454.0,59453.0,6.48605647]
[1617352043411,0.5163093,59454.0,59453.0,6.98605647]
[1617352044214,0.5163093,59454.0,59453.0,6.83525053]
[1617352044841,0.51663446,59454.0,59453.0,6.83525053]
[1617352045044,0.18032546,59454.0,59453.0,6.86525053]
[1617352045247,0.14032646,59454.0,59453.0,7.00021103]
[1617352046045,0.9542,59485.0,59454.0,2.24822781]
[1617352046254,0.005,59482.0,59475.0,0.11573963]
[1617352046451,0.9542,59485.0,59475.0,0.41153963]
[1617352046647,0.9542,59485.0,59475.0,0.46153963]
[1617352046845,0.9542,59485.0,59476.0,0.1]
[1617352047681,0.9542,59485.0,59480.0,0.25222]
[1617352048489,0.10294892,59493.0,59481.0,0.17]
[1617352048690,0.10294892,59493.0,59482.0,0.66541404]
[1617352048892,0.00295141,59494.0,59483.0,0.48238451]
[1617352049090,0.00295141,59494.0,59488.0,0.252181]
[1617352049289,0.00295141,59494.0,59489.0,0.66341404]
[1617352049488,0.00295165,59495.0,59489.0,0.66341404]
[1617352049691,0.00295165,59495.0,59491.0,0.002]
[1617352049891,0.00295231,59496.0,59492.0,0.38791]
[1617352050283,0.00295231,59496.0,59493.0,0.1]
[1617352050487,0.00295231,59496.0,59494.0,0.38791]
[1617352050687,0.00295282,59497.0,59495.0,0.1]
[1617352050886,0.00295279,59496.0,59495.0,0.1]
[1617352051887,0.00295279,59496.0,59492.0,0.1]
[1617352052088,0.00295279,59496.0,59493.0,0.38791]
[1617352052288,0.00295201,59497.0,59494.0,0.1]
[1617352052913,0.0044,59501.0,59494.0,0.1]
[1617352053115,0.85177219,59500.0,59494.0,0.1]
[1617352053319,0.382924,59499.0,59494.0,0.1]
[1617352053532,0.382924,59499.0,59495.0,0.27550404]
[1617352053721,0.0044,59501.0,59496.0,0.135]
[1617352053918,0.0044,59501.0,59496.0,0.635]
[1617352054119,0.0044,59501.0,59496.0,0.735]
[1617352054315,0.85871738,59501.0,59496.0,0.6]
[1617352054514,0.382924,59500.0,59496.0,0.6]
[1617352054713,1.23469619,59500.0,59496.0,0.6]
[1617352054917,0.175,59499.0,59496.0,0.6]
[1617352055116,0.382924,59498.0,59496.0,0.6]
[1617352055942,0.17531596,59499.0,59496.0,0.6]
[1617352056342,0.00031596,59499.0,59496.0,0.6]
[1617352056741,0.85208815,59499.0,59496.0,0.6]
[1617352056942,0.00031596,59499.0,59496.0,0.6]
[1617352057342,0.00031596,59499.0,59496.0,0.65055294]
[1617352057547,0.85208815,59499.0,59496.0,0.65055294]
[1617352057745,0.00031596,59499.0,59496.0,0.65055294]
[1617352059176,0.00031596,59499.0,59496.0,0.6]
[1617352059815,0.00286115,59499.0,59496.0,0.6]
[1617352060018,0.00295875,59497.0,59496.0,0.6]
[1617352060218,0.00295875,59497.0,59496.0,1.13291]
[1617352060419,0.00295916,59498.0,59496.0,1.13291]
[1617352060647,0.00295916,59498.0,59497.0,0.64791]
[1617352060844,0.00295916,59498.0,59497.0,0.74791]
[1617352061051,0.0044,59501.0,59497.0,0.74791]
[1617352061052,0.89443783,59502.0,59497.0,0.36]
[1617352061246,4.01177219,59501.0,59497.0,0.1]
[1617352061448,1.23469619,59500.0,59497.0,0.1]
[1617352061845,0.85177219,59499.0,59497.0,0.1]
[1617352062047,0.382924,59498.0,59497.0,0.1]
[1617352062248,0.382924,59498.0,59495.0,0.252167]
[1617352063269,1.02143064,59498.0,59495.0,0.252167]
[1617352066503,0.00027505,59497.0,59495.0,0.252167]
[1617352067909,0.00027505,59497.0,59496.0,0.011]
[1617352071535,1.49319905,59497.0,59496.0,0.011]
[1617352071733,0.63319905,59497.0,59496.0,0.011]
[1617352072737,0.67271019,59497.0,59496.0,0.011]
[1617352072939,0.63319905,59497.0,59496.0,0.011]
[1617352073140,0.67270679,59497.0,59496.0,0.011]
[1617352074166,0.63319905,59497.0,59496.0,0.011]
[1617352075775,0.67272105,59497.0,59496.0,0.011]
[1617352076176,0.67272105,59497.0,59495.0,0.252167]
[1617352076177,1.52449324,59497.0,59495.0,0.252167]
[1617352076414,1.42969619,59496.0,59493.0,0.1]
[1617352076611,1.35685993,59495.0,59488.0,0.001]
[1617352076810,0.92798821,59494.0,59489.0,0.057]
[1617352077005,0.85177219,59493.0,59489.0,0.097]
[1617352077207,0.382924,59492.0,59489.0,0.097]
[1617352077409,0.1250373,59491.0,59489.0,0.097]
[1617352077610,2.21,59490.0,59489.0,0.097]
[1617352077808,2.3345661,59490.0,59489.0,0.097]
[1617352078004,2.6895661,59490.0,59489.0,0.097]
[1617352078205,0.4795661,59490.0,59489.0,0.097]
[1617352078408,0.1245661,59490.0,59489.0,0.097]
[1617352078812,0.12401575,59494.0,59489.0,0.58491]
[1617352079812,0.12401575,59494.0,59491.0,0.126097]
[1617352080413,0.12401575,59494.0,59492.0,0.058]
[1617352080813,0.12401575,59494.0,59492.0,0.158]
[1617352081013,0.16371876,59495.0,59492.0,0.198]
[1617352081214,0.12396482,59494.0,59492.0,0.198]
[1617352082232,0.12396482,59494.0,59493.0,0.252203]
[1617352082433,2.47396482,59494.0,59493.0,0.252203]
[1617352082636,3.02188882,59494.0,59492.0,0.04]
[1617352082838,3.02188882,59494.0,59491.0,0.126097]
[1617352082839,1.00676122,59493.0,59491.0,0.126097]
[1617352083235,0.12382151,59492.0,59491.0,0.126097]
[1617352083433,0.50674551,59492.0,59491.0,0.184097]
[1617352083635,0.89674551,59492.0,59491.0,0.184097]
[1617352083834,0.89674551,59492.0,59491.0,0.224097]
[1617352085263,1.76929099,59492.0,59491.0,0.224097]
[1617352085464,1.82857335,59492.0,59491.0,0.224097]
[1617352085666,2.04860711,59492.0,59491.0,0.224097]
[1617352086263,2.42788829,59492.0,59491.0,0.224097]
[1617352086468,0.78860711,59492.0,59491.0,0.224097]
[1617352086668,0.50929099,59492.0,59491.0,0.224097]
[1617352087490,0.50956287,59492.0,59491.0,0.224097]
[1617352089992,0.12663887,59492.0,59491.0,0.224097]
[1617352090386,0.12663887,59492.0,59491.0,0.612007]
[1617352090795,0.12663887,59492.0,59491.0,0.712007]
[1617352091188,0.62663887,59492.0,59491.0,0.614007]
[1617352091396,0.18593291,59492.0,59491.0,0.226097]
[1617352091592,0.34393291,59492.0,59491.0,0.226097]
[1617352091788,0.34393291,59492.0,59491.0,0.126097]
[1617352092391,0.28463887,59492.0,59491.0,0.126097]
[1617352092790,0.32412491,59492.0,59491.0,0.126097]
[1617352093192,0.50956287,59492.0,59491.0,0.126097]
[1617352094393,0.54904369,59492.0,59491.0,0.126097]
[1617352094594,0.50956287,59492.0,59491.0,0.126097]
[1617352095195,0.12663887,59492.0,59491.0,0.126097]
[1617352096792,0.12663887,59492.0,59491.0,0.121097]
[1617352097994,0.50956287,59492.0,59491.0,0.121097]
[1617352103443,0.65956287,59492.0,59491.0,0.121097]
[1617352103843,0.31611795,59492.0,59491.0,0.121097]
[1617352104054,0.16611795,59492.0,59491.0,3.65661652]
[1617352104253,0.12663887,59492.0,59491.0,4.56398652]
[1617352104451,0.63850664,59498.0,59492.0,2.1]
[1617352104452,0.67802223,59498.0,59492.0,2.1]
[1617352104753,0.63850664,59498.0,59497.0,3.615]
[1617352104941,0.63850664,59498.0,59497.0,2.04813781]
[1617352105198,0.63850664,59498.0,59497.0,1.5185832]
[1617352105387,0.63850664,59498.0,59497.0,1.7885832]
[1617352105586,0.63850664,59498.0,59497.0,1.61313781]
[1617352105788,0.47043464,59498.0,59497.0,3.92313781]
[1617352105985,0.51001921,59498.0,59497.0,1.64145438]
[1617352106183,0.34194721,59498.0,59497.0,1.94145438]
[1617352106385,0.33404032,59498.0,59497.0,2.41145438]
[1617352106585,0.33166984,59498.0,59497.0,1.45145438]
[1617352106784,0.29208527,59498.0,59497.0,1.45145438]
[1617352106983,0.29208527,59498.0,59497.0,2.12145438]
[1617352107181,0.29208527,59498.0,59497.0,1.45145438]
[1617352107582,0.29208527,59498.0,59497.0,1.96145438]
[1617352107800,0.33165316,59498.0,59497.0,1.96145438]
[1617352107999,0.33165316,59498.0,59497.0,2.10968219]
[1617352108205,0.29208527,59498.0,59497.0,1.96145438]
[1617352108399,0.28973023,59498.0,59497.0,3.12145438]
[1617352108597,0.28997237,59498.0,59497.0,1.96145438]
[1617352108797,0.28997237,59498.0,59497.0,2.10968219]
[1617352108998,0.28997237,59498.0,59497.0,1.96145438]
[1617352109199,0.28997237,59498.0,59497.0,1.66395438]
[1617352109598,0.28997237,59498.0,59497.0,1.81218219]
[1617352109998,0.28997237,59498.0,59497.0,2.19395438]
[1617352110201,0.28997237,59498.0,59497.0,1.66395438]
[1617352110823,0.28997237,59498.0,59497.0,1.81218219]
[1617352111421,0.28997237,59498.0,59497.0,1.66395438]
[1617352113439,0.28497237,59498.0,59497.0,3.45395438]
[1617352113837,0.28497237,59498.0,59497.0,1.66395438]
[1617352116463,0.28185224,59498.0,59497.0,1.66395438]
[1617352116870,0.28185224,59498.0,59497.0,1.33741]
[1617352117270,0.28185224,59498.0,59497.0,0.82741]
[1617352117669,0.28185224,59498.0,59497.0,0.66041]
[1617352118073,0.28185224,59498.0,59497.0,0.16041]
[1617352118363,0.28185224,59498.0,59497.0,0.0025]
[1617352118955,1.41185224,59498.0,59497.0,0.0025]
[1617352119166,3.50520043,59498.0,59497.0,0.0025]
[1617352119363,3.83734043,59498.0,59497.0,0.0025]
[1617352119565,3.93734043,59498.0,59497.0,0.0025]
[1617352119973,5.82734043,59498.0,59497.0,0.0025]
[1617352120184,6.12734043,59498.0,59497.0,0.0025]
[1617352120383,6.12734043,59498.0,59488.0,0.001]
[1617352120384,3.87177219,59497.0,59488.0,0.001]
[1617352120584,0.477479,59493.0,59488.0,0.001]
[1617352120784,3.568754,59489.0,59488.0,0.001]
[1617352120979,4.51249474,59489.0,59488.0,0.001]
[1617352121179,4.80610819,59489.0,59488.0,0.001]
[1617352121377,5.49610819,59489.0,59488.0,0.001]
[1617352121782,5.45610819,59489.0,59488.0,0.001]
[1617352122176,5.59201819,59489.0,59488.0,0.001]
[1617352122577,4.740246,59489.0,59488.0,0.001]
[1617352122781,4.529246,59489.0,59488.0,0.001]
[1617352122981,4.483486,59489.0,59488.0,0.001]
[1617352123177,4.347576,59489.0,59488.0,0.001]
[1617352123777,5.19934819,59489.0,59488.0,0.001]
[1617352123978,4.437576,59489.0,59488.0,0.001]
[1617352125176,1.327576,59489.0,59488.0,0.001]
[1617352125381,0.587576,59489.0,59488.0,0.001]
[1617352125779,1.677576,59489.0,59488.0,0.001]
[1617352125979,1.477754,59489.0,59488.0,0.001]
[1617352126183,1.697754,59489.0,59488.0,0.001]
[1617352126585,1.787754,59489.0,59488.0,0.001]
[1617352126782,1.697754,59489.0,59488.0,0.001]
[1617352126982,1.697754,59489.0,59488.0,0.0173]
[1617352127582,1.747754,59489.0,59488.0,0.0173]
[1617352127785,3.016964,59489.0,59488.0,0.0173]
[1617352127983,2.216964,59489.0,59488.0,0.0173]
[1617352128796,1.126964,59489.0,59488.0,0.0173]
[1617352129001,0.659204,59489.0,59488.0,0.0173]
[1617352129205,0.387754,59489.0,59488.0,0.0173]
[1617352130202,0.38809482,59489.0,59488.0,0.0173]
[1617352133433,0.43809482,59489.0,59488.0,0.0173]
[1617352133631,1.02649682,59489.0,59488.0,0.0173]
[1617352133826,4.04667482,59489.0,59488.0,0.0173]
[1617352134454,0.97667482,59489.0,59488.0,0.0173]
[1617352135130,0.58892082,59489.0,59488.0,0.0173]
[1617352135331,0.00034082,59489.0,59488.0,0.0173]
[1617352136529,0.00034082,59489.0,59488.0,0.405054]
[1617352136725,0.00034082,59489.0,59488.0,0.505054]
[1617352139733,0.13034082,59489.0,59488.0,0.505054]
[1617352139929,0.13034082,59489.0,59488.0,0.715054]
[1617352140336,0.13034082,59489.0,59488.0,0.505054]
[1617352140531,0.13034082,59489.0,59488.0,0.405054]
[1617352141736,0.13034082,59489.0,59488.0,0.505054]
[1617352143935,0.12534082,59489.0,59488.0,0.405054]
[1617352144759,0.12731765,59489.0,59488.0,0.405054]
[1617352145354,0.12534082,59489.0,59488.0,0.505054]
[1617352145555,0.12731764,59489.0,59488.0,0.505054]
[1617352145959,0.12534082,59489.0,59488.0,0.505054]
[1617352146358,0.12632888,59489.0,59488.0,0.505054]
[1617352147384,0.12534082,59489.0,59488.0,0.505054]
[1617352147992,0.12534082,59489.0,59488.0,1.36749289]
[1617352148180,0.12534082,59489.0,59488.0,1.21926508]
[1617352148383,0.00098832,59494.0,59489.0,3.02]
[1617352148590,0.00098832,59495.0,59494.0,0.275]
[1617352148780,0.00098832,59495.0,59494.0,0.662754]
[1617352148981,0.00098832,59495.0,59494.0,0.762754]
[1617352149185,0.9051,59496.0,59495.0,0.1]
[1617352150253,0.88738103,59496.0,59495.0,0.1]
[1617352150451,0.88738103,59496.0,59495.0,0.375]
[1617352150889,0.88738103,59496.0,59495.0,0.4260281]
[1617352151088,0.88738103,59496.0,59495.0,0.425]
[1617352151490,0.28259836,59498.0,59495.0,0.425]
[1617352151691,0.28259836,59498.0,59497.0,3.407754]
[1617352151888,0.2816101,59498.0,59497.0,3.407754]
[1617352152095,0.2816101,59498.0,59497.0,3.557754]
[1617352152300,0.2816101,59498.0,59497.0,4.00598181]
[1617352152491,0.2816101,59498.0,59497.0,5.27564978]
[1617352152699,0.156,59500.0,59499.0,3.46466797]
[1617352152902,0.00098814,59507.0,59499.0,6.49857781]
[1617352153092,0.00098814,59507.0,59506.0,3.05]
[1617352153322,0.00197627,59508.0,59506.0,4.26224876]
[1617352153323,0.00098814,59508.0,59506.0,4.26224876]
[1617352153520,0.00098814,59509.0,59507.0,4.8358105]
[1617352153719,0.0004,59522.0,59509.0,3.12]
[1617352153720,0.00098814,59510.0,59509.0,3.12]
[1617352153919,0.00197622,59513.0,59511.0,0.77547803]
[1617352154115,0.00197622,59513.0,59512.0,4.45758269]
[1617352154312,0.00197622,59513.0,59512.0,5.52628269]
[1617352154513,0.00197622,59514.0,59513.0,0.37626695]
[1617352154713,0.01976203,59518.0,59514.0,1.76593492]
[1617352154915,0.01976203,59518.0,59517.0,3.407754]
[1617352155116,0.01976203,59518.0,59517.0,3.457754]
[1617352155313,0.01764432,59518.0,59517.0,4.10102095]
[1617352155514,0.01764432,59518.0,59517.0,4.44568892]
[1617352155714,0.0004,59522.0,59517.0,5.39068892]
[1617352155932,0.0004,59522.0,59519.0,0.252038]
[1617352156130,0.0004,59522.0,59520.0,1.10868892]
[1617352156333,0.0004,59522.0,59521.0,0.44466797]
[1617352156536,0.03994582,59522.0,59521.0,1.76742197]
[1617352156732,0.03994582,59522.0,59521.0,1.81742197]
[1617352156934,0.04262743,59522.0,59521.0,1.472754]
[1617352157135,0.04262743,59522.0,59521.0,0.537754]
[1617352157136,0.00308161,59522.0,59521.0,0.537754]
[1617352157332,0.00308161,59522.0,59521.0,0.88242197]
[1617352158334,0.00308161,59522.0,59521.0,0.89872197]
[1617352158557,0.00308161,59522.0,59521.0,1.20372197]
[1617352158759,0.0004,59525.0,59521.0,1.20372197]
[1617352158957,0.0004,59525.0,59522.0,1.13163305]
[1617352159162,0.85217219,59525.0,59524.0,0.39921108]
[1617352159365,0.85217219,59525.0,59524.0,0.34466797]
[1617352159563,1.72217219,59525.0,59523.0,0.2]
[1617352159764,1.23952619,59524.0,59521.0,0.0163]
[1617352160160,0.85177219,59523.0,59521.0,0.0163]
[1617352160361,0.225194,59522.0,59521.0,0.0163]
[1617352160965,0.85177219,59524.0,59521.0,0.0163]
[1617352161190,0.0004,59525.0,59521.0,0.0163]
[1617352161392,0.0004,59525.0,59523.0,0.205]
[1617352161789,0.0004,59525.0,59523.0,0.305]
[1617352161987,0.00294409,59525.0,59523.0,0.305]
[1617352162389,0.00294409,59525.0,59524.0,0.34466797]
[1617352162591,0.85471628,59525.0,59523.0,0.305]
[1617352162791,0.00032328,59524.0,59523.0,0.305]
[1617352162992,0.00032328,59524.0,59523.0,0.692754]
[1617352163395,0.00032328,59524.0,59523.0,0.74269898]
[1617352163591,0.00032328,59524.0,59523.0,1.03742197]
[1617352164206,0.00032328,59524.0,59523.0,0.83242197]
[1617352164407,0.00032328,59524.0,59523.0,0.84872197]
[1617352165096,0.00032328,59524.0,59523.0,0.504054]
[1617352166937,0.00032328,59524.0,59523.0,0.84872197]
[1617352167137,0.00032328,59524.0,59523.0,0.504054]
[1617352167738,0.00032328,59524.0,59523.0,0.554054]
[1617352167946,0.00032328,59524.0,59523.0,0.1163]
[1617352168545,0.00032328,59524.0,59523.0,0.46096797]
[1617352168738,0.00032328,59524.0,59523.0,0.84872197]
[1617352169162,0.00032328,59524.0,59523.0,0.46096797]
[1617352170367,0.00032328,59524.0,59523.0,0.0163]
[1617352170961,0.85209547,59524.0,59523.0,0.0163]
[1617352171176,1.15084314,59524.0,59523.0,0.0163]
[1617352171371,3.95359714,59524.0,59523.0,0.0163]
[1617352171566,3.74484947,59524.0,59523.0,0.0163]
[1617352171797,3.74484947,59524.0,59521.0,0.0025]
[1617352171992,4.13648955,59523.0,59522.0,0.0163]
[1617352172193,5.24424355,59523.0,59522.0,0.0163]
[1617352172791,2.09052619,59523.0,59522.0,0.0163]
[1617352172990,1.37052619,59523.0,59522.0,0.0163]
[1617352173196,0.518754,59523.0,59522.0,0.0163]
[1617352173797,0.51907623,59523.0,59522.0,0.0163]
[1617352174416,0.51907623,59523.0,59522.0,0.268371]
[1617352175223,0.13132223,59523.0,59522.0,1.828371]
[1617352175423,0.13132223,59523.0,59522.0,0.93084236]
[1617352175618,0.13132223,59523.0,59522.0,1.22584236]
[1617352175811,0.13132223,59523.0,59522.0,1.07838077]
[1617352176013,0.13132223,59523.0,59522.0,0.85366341]
[1617352176214,0.13132223,59523.0,59522.0,0.90366341]
[1617352176816,0.11132223,59523.0,59522.0,0.90366341]
[1617352177240,0.00032223,59523.0,59522.0,1.39045341]
[1617352177640,0.119618,59523.0,59522.0,1.61545341]
[1617352177841,0.00032223,59523.0,59522.0,1.61545341]
[1617352178040,0.11961784,59523.0,59522.0,1.61545341]
[1617352178242,0.10240929,59523.0,59522.0,2.01466449]
[1617352178445,0.00294409,59525.0,59522.0,2.01466449]
[1617352178644,0.00294409,59525.0,59524.0,0.39921108]
[1617352178847,0.00294409,59525.0,59524.0,0.922754]
[1617352179049,0.00294409,59525.0,59524.0,1.32196508]
[1617352179246,0.00294409,59525.0,59524.0,0.922754]
[1617352179442,0.00294409,59525.0,59524.0,1.35546508]
[1617352180135,0.00294409,59525.0,59524.0,0.972554]
[1617352180332,0.00294409,59525.0,59524.0,0.93676508]
[1617352180531,0.00294409,59525.0,59524.0,0.537554]
[1617352180739,0.00294409,59525.0,59524.0,0.93676508]
[1617352181135,0.00294409,59525.0,59524.0,1.08654279]
[1617352181941,0.00294409,59525.0,59524.0,1.58654279]
[1617352182739,0.00294409,59525.0,59524.0,1.18733171]
[1617352182938,0.00294409,59525.0,59524.0,1.43676508]
[1617352183143,0.00590776,59525.0,59524.0,1.82176508]
[1617352183344,0.00294409,59525.0,59524.0,1.82176508]
[1617352184342,0.00322745,59525.0,59524.0,1.82176508]
[1617352185944,0.00322745,59525.0,59524.0,1.43676508]
[1617352186341,0.00322745,59525.0,59524.0,1.037554]
[1617352186540,0.00322745,59525.0,59524.0,1.43676508]
[1617352186946,0.00322745,59525.0,59524.0,1.67676508]
[1617352187145,0.00322745,59525.0,59524.0,1.277554]
[1617352188145,0.00322745,59525.0,59524.0,1.037554]
[1617352188753,0.00336367,59526.0,59525.0,0.82027255]
[1617352188955,0.0004,59526.0,59525.0,1.31723763]
[1617352189152,0.0004,59526.0,59525.0,1.36723763]
[1617352189353,0.0004,59526.0,59525.0,1.06802655]
[1617352189755,0.0004,59526.0,59525.0,1.03432655]
[1617352190769,0.00336468,59526.0,59525.0,1.03432655]
[1617352195570,0.0004,59528.0,59526.0,0.95690787]
[1617352195775,0.0004,59528.0,59527.0,0.987754]
[1617352196777,0.0004,59528.0,59527.0,0.69034052]
[1617352196975,0.0004,59528.0,59527.0,0.387626]
[1617352197376,0.0004,59528.0,59527.0,0.403926]
[1617352197986,0.03998692,59528.0,59527.0,0.403926]
[1617352198177,0.03998692,59528.0,59527.0,0.503926]
[1617352198579,0.11934669,59528.0,59527.0,0.503926]
[1617352200181,0.11934669,59528.0,59527.0,0.403926]
[1617352200581,0.11934669,59528.0,59527.0,0.0163]
[1617352201784,0.11934669,59528.0,59527.0,0.503926]
[1617352202583,0.11934669,59528.0,59527.0,0.960526]
[1617352202987,0.0004,59528.0,59527.0,0.960526]
[1617352203418,0.0004,59528.0,59527.0,1.320526]
[1617352203619,0.1794,59530.0,59529.0,0.02610787]
[1617352203818,0.3494,59530.0,59529.0,0.02610787]
[1617352204015,0.3494,59530.0,59529.0,0.41373387]
[1617352204218,0.3494,59530.0,59529.0,0.51373387]
[1617352204415,0.1794,59530.0,59529.0,0.51373387]
[1617352204620,0.1794,59530.0,59529.0,0.53003387]
[1617352204820,0.1794,59530.0,59529.0,0.80511975]
[1617352205020,0.1794,59530.0,59529.0,0.85511975]
[1617352205222,0.1794,59530.0,59529.0,0.58003387]
[1617352205617,0.1794,59530.0,59529.0,0.95503387]
[1617352206020,0.1794,59530.0,59529.0,1.57478772]
[1617352206219,0.1794,59530.0,59529.0,1.23011975]
[1617352206417,0.1794,59530.0,59529.0,1.29970184]
[1617352206617,0.0004,59530.0,59529.0,1.45503387]
[1617352206818,0.0004,59530.0,59529.0,1.79970184]
[1617352207820,0.0004,59530.0,59529.0,1.84950613]
[1617352209448,0.0004,59530.0,59529.0,0.97983816]
[1617352209850,0.0004,59530.0,59529.0,0.93003387]
[1617352210534,0.0004,59530.0,59529.0,0.98003387]
[1617352210734,0.0004,59535.0,59529.0,1.68424495]
[1617352210933,0.0004,59535.0,59531.0,1.02520408]
[1617352211187,0.0004,59535.0,59532.0,0.93683708]
[1617352211385,0.0004,59535.0,59532.0,0.537626]
[1617352211789,0.0004,59535.0,59533.0,0.0163]
[1617352212189,0.0004,59535.0,59533.0,0.04240787]
[1617352212391,0.0004,59535.0,59533.0,0.29439687]
[1617352213797,0.0004,59535.0,59533.0,0.34439687]
[1617352213996,0.0004,59535.0,59533.0,0.74360795]
[1617352214199,0.0004,59535.0,59533.0,0.34439687]
[1617352214401,0.0004,59535.0,59533.0,0.39473686]
[1617352214597,0.0004,59535.0,59533.0,0.34439687]
[1617352214801,0.0004,59535.0,59534.0,0.56256014]
[1617352215002,0.0004,59535.0,59534.0,0.89256014]
[1617352215203,0.0004,59535.0,59534.0,1.33722811]
[1617352215403,0.0004,59535.0,59534.0,1.63477069]
[1617352215608,0.0004,59535.0,59534.0,1.80640272]